fUST/lending_fUST_20240528
["ID","MTS","AMOUNT","RATE_DAILY","PERIOD"]
[328064631,1716828681484,-500.0,0.00029041,4]
[328064632,1716828681494,-500.0,0.00029041,4]
[328064633,1716828681503,-500.0,0.00029041,4]
[328064634,1716828681513,-639.85,0.00029041,4]
[328064635,1716828681523,-760.94,0.00029041,4]
[328064636,1716828681532,-500.0,0.00029041,4]
[328064637,1716828681541,-500.0,0.00029041,4]
[328064638,1716828681551,-625.4,0.00029041,4]
[328064639,1716828681560,-594.07,0.00029041,4]
[328064640,1716828681570,-500.0,0.00029041,4]
[328064641,1716828681579,-500.0,0.00029041,4]
[328064642,1716828681588,-984.46,0.00029041,4]
[328064643,1716828681597,-2041.19,0.00029041,4]
[328064644,1716828681606,-500.0,0.00029041,4]
[328064645,1716828681616,-2214.31,0.00029041,4]
[328064646,1716828681626,-1654.46,0.00029041,4]
[328064647,1716828681635,-591.11,0.00029041,4]
[328064648,1716828681645,-924.61,0.00029041,4]
[328064649,1716828681654,-500.0,0.00029041,4]
[328064650,1716828681663,-500.0,0.00029041,4]
[328064651,1716828681673,-500.0,0.00029041,4]
[328064652,1716828681683,-500.0,0.00029041,4]
[328064653,1716828681692,-1453.45,0.00029041,4]
[328064654,1716828681701,-641.76,0.00029041,4]
[328064655,1716828681710,-641.56,0.00029041,4]
[328064656,1716828681719,-500.0,0.00029041,4]
[328064657,1716828681728,-500.0,0.00029041,4]
[328064658,1716828681738,-500.0,0.00029041,4]
[328064659,1716828681747,-500.0,0.00029041,4]
[328064660,1716828681756,-500.0,0.00029041,4]
[328064661,1716828681767,-500.0,0.00029041,4]
[328064662,1716828681781,-500.0,0.00029041,4]
[328064663,1716828681791,-556.76570064,0.00029041,4]
[328064664,1716828681800,-949.44,0.00029041,4]
[328064665,1716828681812,-3125.75,0.00029041,4]
[328064666,1716828681821,-866.38,0.00029041,4]
[328064667,1716828681831,-1068.09,0.00029041,4]
[328064668,1716828681840,-831.3,0.00029041,4]
[328064669,1716828681852,-654.84,0.00029041,4]
[328064670,1716828681862,-1063.2,0.00029041,4]
[328064671,1716828681871,-988.59,0.00029041,4]
[328064672,1716828681880,-2485.43,0.00029041,4]
[328064673,1716828681889,-691.66,0.00029041,4]
[328064674,1716828681899,-500.0,0.00029041,4]
[328064675,1716828681907,-500.0,0.00029041,4]
[328064676,1716828681916,-563.58,0.00029041,4]
[328064677,1716828681926,-500.0,0.00029041,4]
[328064678,1716828681936,-3918.91,0.00029041,4]
[328064679,1716828681945,-500.0,0.00029041,4]
[328064680,1716828681954,-520.07,0.00029041,4]
[328064681,1716828681964,-1269.93,0.00029041,4]
[328064682,1716828681973,-1098.77,0.00029041,4]
[328064683,1716828681983,-500.0,0.00029041,4]
[328064684,1716828681992,-500.0,0.00029041,4]
[328064685,1716828682002,-500.0,0.00029041,4]
[328064686,1716828682011,-500.0,0.00029041,4]
[328064687,1716828682022,-3693.27,0.00029041,4]
[328064688,1716828682031,-500.0,0.00029041,4]
[328064689,1716828682041,-530.15,0.00029041,4]
[328064690,1716828682051,-536.32,0.00029041,4]
[328064691,1716828682062,-500.0,0.00029041,4]
[328064692,1716828682072,-611.73,0.00029041,4]
[328064693,1716828682081,-500.0,0.00029041,4]
[328064694,1716828682091,-500.0,0.00029041,4]
[328064695,1716828682099,-725.57,0.00029041,4]
[328064696,1716828682109,-500.0,0.00029041,4]
[328064697,1716828682118,-1157.28,0.00029041,2]
[328064698,1716828682128,-500.0,0.00029041,4]
[328064699,1716828682137,-504.63,0.00029041,4]
[328064700,1716828682146,-500.0,0.00029041,4]
[328064701,1716828682156,-1823.06,0.00029041,4]
[328064702,1716828682165,-601.37,0.00029041,4]
[328064703,1716828682174,-500.0,0.00029041,4]
[328064704,1716828682184,-617.72,0.00029041,4]
[328064705,1716828682193,-500.0,0.00029041,4]
[328064706,1716828682203,-2675.35,0.00029041,4]
[328064707,1716828682213,-500.0,0.00029041,4]
[328064708,1716828682222,-596.2,0.00029041,4]
[328064709,1716828682232,-1132.79,0.00029041,4]
[328064710,1716828682241,-815.6,0.00029041,4]
[328064711,1716828682250,-500.0,0.00029041,4]
[328064712,1716828682259,-175.349527,0.00029041,4]
[328064713,1716828682268,-500.0,0.00029041,4]
[328064714,1716828682278,-500.0,0.00029041,4]
[328064715,1716828682287,-500.0,0.00029041,4]
[328064716,1716828682296,-669.54,0.00029041,4]
[328064717,1716828682306,-606.63,0.00029041,4]
[328064718,1716828682317,-500.0,0.00029041,4]
[328064719,1716828682326,-500.0,0.00029041,4]
[328064720,1716828682336,-500.0,0.00029041,4]
[328064721,1716828682345,-500.0,0.00029041,4]
[328064722,1716828682355,-1859.98,0.00029041,4]
[328064723,1716828682364,-500.0,0.00029041,4]
[328064724,1716828682373,-945.57,0.00029041,4]
[328064725,1716828682382,-500.0,0.00029041,4]
[328064726,1716828682391,-1646.07,0.00029041,4]
[328064727,1716828682400,-500.0,0.00029041,4]
[328064728,1716828682410,-500.0,0.00029041,4]
[328064729,1716828682419,-500.0,0.00029041,4]
[328064730,1716828682429,-500.0,0.00029041,4]
[328064731,1716828682439,-250.0,0.00029041,4]
[328064732,1716828682448,-638.7,0.00029041,4]
[328064733,1716828682458,-574.14,0.00029041,4]
[328064734,1716828682467,-555.86849066,0.00029041,4]
[328064735,1716828682476,-500.0,0.00029041,4]
[328064736,1716828682485,-2360.67,0.00029041,4]
[328064737,1716828682494,-500.0,0.00029041,4]
[328064738,1716828682503,-1074.44,0.00029041,4]
[328064739,1716828682512,-921.35,0.00029041,4]
[328064740,1716828682522,-576.69,0.00029041,4]
[328064741,1716828682531,-1212.06,0.00029041,4]
[328064742,1716828682540,-12483.57,0.00029041,4]
[328064743,1716828682549,-528.21,0.00029041,4]
[328064744,1716828682558,-500.0,0.00029041,4]
[328064745,1716828682569,-500.0,0.00029041,4]
[328064746,1716828682579,-1012.48,0.00029041,4]
[328064747,1716828682588,-500.0,0.00029041,4]
[328064748,1716828682597,-773.35,0.00029041,4]
[328064749,1716828682606,-500.0,0.00029041,4]
[328064750,1716828682615,-910.69,0.00029041,4]
[328064751,1716828682624,-500.0,0.00029041,4]
[328064752,1716828682634,-500.0,0.00029041,4]
[328064753,1716828682643,-704.47,0.00029041,4]
[328064754,1716828682652,-500.0,0.00029041,4]
[328064755,1716828682661,-790.95,0.00029041,4]
[328064756,1716828682671,-500.0,0.00029041,4]
[328064757,1716828682680,-500.0,0.00029041,4]
[328064758,1716828682689,-500.0,0.00029041,4]
[328064759,1716828682698,-814.71,0.00029041,4]
[328064760,1716828682707,-2637.19,0.00029041,4]
[328064761,1716828682716,-500.0,0.00029041,4]
[328064762,1716828682725,-500.0,0.00029041,4]
[328064763,1716828682734,-736.82,0.00029041,4]
[328064764,1716828682743,-952.11,0.00029041,4]
[328064765,1716828682752,-500.0,0.00029041,4]
[328064766,1716828682762,-500.0,0.00029041,4]
[328064767,1716828682777,-529.54,0.00029041,4]
[328064768,1716828682786,-500.0,0.00029041,4]
[328064769,1716828682795,-500.0,0.00029041,4]
[328064770,1716828682894,-576.92,0.00029041,4]
[328064771,1716828682904,-594.73,0.00029041,4]
[328064772,1716828682914,-500.0,0.00029041,4]
[328064773,1716828682925,-500.0,0.00029041,4]
[328064774,1716828682935,-669.39,0.00029041,4]
[328064775,1716828682946,-1352.61,0.00029041,4]
[328064776,1716828682955,-667.65,0.00029041,4]
[328064777,1716828682964,-562.4,0.00029041,4]
[328064778,1716828682974,-3442.49,0.00029041,4]
[328064779,1716828682984,-536.50464028,0.00029041,4]
[328064780,1716828682994,-517.55996338,0.00029041,4]
[328064781,1716828683004,-500.0,0.00029041,4]
[328064782,1716828683013,-500.0,0.00029041,4]
[328064783,1716828683023,-300.0,0.00029041,4]
[328064784,1716828683033,-550.83,0.00029041,4]
[328064785,1716828683042,-244.45532956,0.00029041,4]
[328064786,1716828683052,-776.28,0.00029041,4]
[328064787,1716828683062,-2136.16,0.00029041,4]
[328064788,1716828683074,-3257.38,0.00029041,4]
[328064789,1716828683083,-2740.36,0.00029041,4]
[328064790,1716828683092,-1654.94,0.00029041,4]
[328064791,1716828683102,-554.59,0.00029041,4]
[328064792,1716828683111,-358.35334757,0.00029041,4]
[328064793,1716828683120,-1514.86,0.00029041,4]
[328064794,1716828683129,-500.0,0.00029041,4]
[328064795,1716828683139,-500.0,0.00029041,4]
[328064796,1716828683148,-510.36588771,0.00029041,4]
[328064797,1716828683157,-500.0,0.00029041,4]
[328064798,1716828683166,-500.0,0.00029041,4]
[328064799,1716828683175,-500.0,0.00029041,4]
[328064800,1716828683184,-1050.35,0.00029041,4]
[328064801,1716828683193,-500.0,0.00029041,4]
[328064802,1716828683202,-892.42,0.00029041,4]
[328064803,1716828683211,-500.0,0.00029041,4]
[328064804,1716828683220,-500.0,0.00029041,4]
[328064805,1716828683229,-500.0,0.00029041,4]
[328064806,1716828683239,-500.0,0.00029041,4]
[328064807,1716828683249,-500.0,0.00029041,2]
[328064808,1716828683258,-651.97,0.00029041,4]
[328064809,1716828683268,-1363.75,0.00029041,4]
[328064810,1716828683277,-593.66,0.00029041,4]
[328064811,1716828683286,-1131.43,0.00029041,4]
[328064812,1716828683295,-539.52,0.00029041,4]
[328064813,1716828683304,-500.0,0.00029041,4]
[328064814,1716828683317,-500.0,0.00029041,4]
[328064815,1716828683326,-7625.13,0.00029041,4]
[328064816,1716828683335,-500.0,0.00029041,4]
[328064817,1716828683345,-500.0,0.00029041,4]
[328064818,1716828683354,-574.45,0.00029041,4]
[328064819,1716828683363,-1087.57,0.00029041,4]
[328064820,1716828683372,-632.54,0.00029041,4]
[328064821,1716828683381,-1312.75,0.00029041,4]
[328064822,1716828683390,-633.72,0.00029041,4]
[328064823,1716828683399,-6361.41,0.00029041,4]
[328064824,1716828683408,-500.0,0.00029041,4]
[328064825,1716828683417,-500.0,0.00029041,4]
[328064826,1716828683426,-500.0,0.00029041,4]
[328064827,1716828683436,-587.32,0.00029041,4]
[328064828,1716828683445,-642.28,0.00029041,4]
[328064829,1716828683454,-4795.75,0.00029041,4]
[328064830,1716828683463,-500.0,0.00029041,4]
[328064831,1716828683472,-2064.41,0.00029041,4]
[328064832,1716828683481,-500.0,0.00029041,4]
[328064833,1716828683490,-500.0,0.00029041,4]
[328064834,1716828683499,-500.0,0.00029041,4]
[328064835,1716828683509,-500.0,0.00029041,4]
[328064836,1716828683519,-517.75077556,0.00029041,4]
[328064837,1716828683528,-500.0,0.00029041,4]
[328064838,1716828683538,-500.0,0.00029041,4]
[328064839,1716828683548,-512.18811659,0.00029041,4]
[328064840,1716828683557,-500.0,0.00029041,4]
[328064841,1716828683569,-500.0,0.00029041,4]
[328064842,1716828683578,-500.0,0.00029041,4]
[328064843,1716828683587,-500.0,0.00029041,4]
[328064844,1716828683595,-2566.21,0.00029041,2]
[328064845,1716828683604,-756.1,0.00029041,4]
[328064846,1716828683614,-500.0,0.00029041,4]
[328064847,1716828683624,-510.95,0.00029041,4]
[328064848,1716828683633,-801.47,0.00029041,4]
[328064849,1716828683642,-506.82,0.00029041,4]
[328064850,1716828683652,-1002.65,0.00029041,4]
[328064851,1716828683661,-1000.0,0.00029041,2]
[328064852,1716828683670,-500.0,0.00029041,4]
[328064853,1716828683679,-625.4,0.00029041,4]
[328064854,1716828683688,-605.1,0.00029041,4]
[328064855,1716828683698,-500.0,0.00029041,4]
[328064856,1716828683707,-802.98,0.00029041,4]
[328064857,1716828683716,-2197.41,0.00029041,4]
[328064858,1716828683725,-17023.71,0.00029041,4]
[328064859,1716828683734,-544.16,0.00029041,4]
[328064860,1716828683743,-500.0,0.00029041,4]
[328064861,1716828683752,-879.06,0.00029041,4]
[328064862,1716828683760,-500.0,0.00029041,4]
[328064863,1716828683771,-726.78,0.00029041,4]
[328064864,1716828683783,-500.0,0.00029041,4]
[328064865,1716828683792,-6977.2,0.00029041,4]
[328064866,1716828683801,-750.83,0.00029041,4]
[328064867,1716828683811,-2138.53,0.00029041,4]
[328064868,1716828683822,-582.8139835,0.00029041,4]
[328064869,1716828683830,-20833.29,0.00029041,4]
[328064870,1716828683839,-5392.04,0.00029041,4]
[328064871,1716828683848,-786.56,0.00029041,4]
[328064872,1716828683859,-805.12,0.00029041,4]
[328064873,1716828683869,-2243.3,0.00029041,4]
[328064874,1716828683878,-3657.81,0.00029041,4]
[328064875,1716828683887,-154.42348508,0.00029096,2]
[328064876,1716828683897,-968.26312279,0.00029212,2]
[328064877,1716828683906,-500.0,0.00029315,4]
[328064878,1716828683915,-500.0,0.00029315,4]
[328064879,1716828683925,-824.6,0.00029315,4]
[328064880,1716828683934,-500.0,0.00029315,4]
[328064881,1716828683942,-500.0,0.00029315,4]
[328064882,1716828683952,-675.69,0.00029315,4]
[328064883,1716828683961,-811.63,0.00029315,4]
[328064884,1716828683970,-500.0,0.00029315,4]
[328064885,1716828683979,-500.0,0.00029315,4]
[328064886,1716828683988,-500.0,0.00029315,4]
[328064887,1716828683997,-726.55,0.00029315,4]
[328064888,1716828684007,-500.0,0.00029315,4]
[328064889,1716828684016,-500.0,0.00029315,4]
[328064890,1716828684025,-500.0,0.00029315,4]
[328064891,1716828684034,-276.73853874,0.00029315,4]
[328064892,1716828684044,-626.93,0.00029315,4]
[328064893,1716828684053,-500.0,0.00029315,4]
[328064894,1716828684063,-500.0,0.00029315,4]
[328064895,1716828684074,-500.0,0.00029315,4]
[328064896,1716828684083,-1224.04,0.00029315,4]
[328064897,1716828684093,-296.12370363,0.00029315,4]
[328064898,1716828684102,-500.0,0.00029315,4]
[328064899,1716828684112,-535.59,0.00029315,4]
[328064900,1716828684121,-500.0,0.00029315,4]
[328064901,1716828684130,-500.0,0.00029315,4]
[328064902,1716828684139,-515.43,0.00029315,4]
[328064903,1716828684148,-531.54,0.00029315,4]
[328064904,1716828684157,-500.0,0.00029315,4]
[328064905,1716828684167,-500.0,0.00029315,4]
[328064906,1716828684176,-659.49,0.00029315,4]
[328064907,1716828684186,-500.0,0.00029315,4]
[328064908,1716828684195,-500.0,0.00029315,4]
[328064909,1716828684205,-500.0,0.00029315,4]
[328064910,1716828684216,-1246.45,0.00029315,4]
[328064911,1716828684226,-504.45,0.00029315,4]
[328064912,1716828684235,-682.29,0.00029315,4]
[328064913,1716828684245,-550.01,0.00029315,4]
[328064914,1716828684254,-851.4,0.00029315,4]
[328064915,1716828684264,-525.21559606,0.00029315,4]
[328064916,1716828684274,-1016.02,0.00029315,4]
[328064917,1716828684284,-500.0,0.00029315,4]
[328064918,1716828684294,-728.84,0.00029315,4]
[328064919,1716828684303,-1130.97,0.00029315,4]
[328064920,1716828684313,-1216.29,0.00029315,4]
[328064921,1716828684324,-2810.41,0.00029315,4]
[328064922,1716828684334,-381.88979398,0.00029315,4]
[328064923,1716828684344,-2432.96,0.00029315,4]
[328064924,1716828684450,-518.2,0.00029315,4]
[328064925,1716828684460,-509.77,0.00029315,4]
[328064926,1716828684469,-500.0,0.00029315,4]
[328064927,1716828684479,-500.0,0.00029315,4]
[328064928,1716828684488,-2823.17,0.00029315,4]
[328064929,1716828684497,-500.0,0.00029315,4]
[328064930,1716828684506,-500.0,0.00029315,4]
[328064931,1716828684516,-510.56034163,0.00029315,4]
[328064932,1716828684525,-639.85,0.00029315,4]
[328064933,1716828684535,-760.94,0.00029315,4]
[328064934,1716828684544,-500.0,0.00029315,4]
[328064935,1716828684554,-500.0,0.00029315,4]
[328064936,1716828684565,-625.4,0.00029315,4]
[328064937,1716828684576,-594.07,0.00029315,4]
[328064938,1716828684586,-527.491748,0.00029315,4]
[328064939,1716828684596,-500.0,0.00029315,4]
[328064940,1716828684606,-984.46,0.00029315,4]
[328064941,1716828684616,-2041.19,0.00029315,4]
[328064942,1716828684626,-500.0,0.00029315,4]
[328064943,1716828684636,-2214.31,0.00029315,4]
[328064944,1716828684645,-1654.46,0.00029315,4]
[328064945,1716828684656,-591.11,0.00029315,4]
[328064946,1716828684665,-924.61,0.00029315,4]
[328064947,1716828684674,-500.0,0.00029315,4]
[328064948,1716828684684,-500.0,0.00029315,4]
[328064949,1716828684694,-500.0,0.00029315,4]
[328064950,1716828684703,-500.0,0.00029315,4]
[328064951,1716828684712,-1453.45,0.00029315,4]
[328064952,1716828684722,-641.76,0.00029315,4]
[328064953,1716828684731,-641.56,0.00029315,4]
[328064954,1716828684740,-645.07208671,0.00029315,4]
[328064955,1716828684752,-500.0,0.00029315,4]
[328064956,1716828684762,-500.0,0.00029315,4]
[328064957,1716828684779,-500.0,0.00029315,4]
[328064958,1716828684788,-645.66020688,0.00029315,4]
[328064959,1716828684798,-568.34184398,0.00029315,4]
[328064960,1716828684809,-500.0,0.00029315,4]
[328064961,1716828684822,-949.44,0.00029315,4]
[328064962,1716828684830,-3125.75,0.00029315,4]
[328064963,1716828684839,-866.38,0.00029315,4]
[328064964,1716828684850,-1068.09,0.00029315,4]
[328064965,1716828684859,-831.3,0.00029315,4]
[328064966,1716828684868,-654.84,0.00029315,4]
[328064967,1716828684878,-1063.2,0.00029315,4]
[328064968,1716828684887,-988.59,0.00029315,4]
[328064969,1716828684896,-2485.43,0.00029315,4]
[328064970,1716828684905,-691.66,0.00029315,4]
[328064971,1716828684915,-152.224868,0.00029315,4]
[328064972,1716828684925,-500.0,0.00029315,4]
[328064973,1716828684934,-563.58,0.00029315,4]
[328064974,1716828684943,-406.12586061,0.00029315,4]
[328064975,1716828684953,-3918.91,0.00029315,4]
[328064976,1716828684962,-500.0,0.00029315,4]
[328064977,1716828684971,-520.07,0.00029315,4]
[328064978,1716828684981,-1269.93,0.00029315,4]
[328064979,1716828684990,-1098.77,0.00029315,4]
[328064980,1716828685000,-589.97195288,0.00029315,4]
[328064981,1716828685009,-500.0,0.00029315,4]
[328064982,1716828685021,-500.0,0.00029315,4]
[328064983,1716828685030,-500.0,0.00029315,4]
[328064984,1716828685040,-3693.27,0.00029315,4]
[328064985,1716828685050,-324.89711233,0.00029315,4]
[328064986,1716828685059,-530.15,0.00029315,4]
[328064987,1716828685072,-536.32,0.00029315,4]
[328064988,1716828685081,-500.0,0.00029315,4]
[328064989,1716828685090,-611.73,0.00029315,4]
[328064990,1716828685100,-507.66910054,0.00029315,4]
[328064991,1716828685110,-500.0,0.00029315,4]
[328064992,1716828685121,-725.57,0.00029315,4]
[328064993,1716828685131,-537.89629721,0.00029315,4]
[328064994,1716828685141,-1157.28,0.00029315,2]
[328064995,1716828685151,-500.0,0.00029315,4]
[328064996,1716828685165,-504.63,0.00029315,4]
[328064997,1716828685187,-500.0,0.00029315,4]
[328064998,1716828685206,-1823.06,0.00029315,4]
[328064999,1716828685228,-601.37,0.00029315,4]
[328065000,1716828685250,-500.0,0.00029315,4]
[328065001,1716828685268,-617.72,0.00029315,4]
[328065002,1716828685289,-500.0,0.00029315,4]
[328065003,1716828685305,-2675.35,0.00029315,4]
[328065004,1716828685327,-500.0,0.00029315,4]
[328065005,1716828685349,-596.2,0.00029315,4]
[328065006,1716828685365,-1132.79,0.00029315,4]
[328065007,1716828685384,-815.6,0.00029315,4]
[328065008,1716828685400,-500.0,0.00029315,4]
[328065009,1716828685419,-500.0,0.00029315,4]
[328065010,1716828685435,-500.0,0.00029315,4]
[328065011,1716828685452,-500.0,0.00029315,4]
[328065012,1716828685469,-669.54,0.00029315,4]
[328065013,1716828685486,-606.63,0.00029315,4]
[328065014,1716828685502,-631.49178302,0.00029315,4]
[328065015,1716828685520,-500.0,0.00029315,4]
[328065016,1716828685537,-500.0,0.00029315,4]
[328065017,1716828685554,-500.0,0.00029315,4]
[328065018,1716828685573,-1859.98,0.00029315,4]
[328065019,1716828685589,-500.0,0.00029315,4]
[328065020,1716828685606,-945.57,0.00029315,4]
[328065021,1716828685624,-500.0,0.00029315,4]
[328065022,1716828685641,-1646.07,0.00029315,4]
[328065023,1716828685659,-500.0,0.00029315,4]
[328065024,1716828685676,-500.0,0.00029315,4]
[328065025,1716828685694,-500.0,0.00029315,4]
[328065026,1716828685711,-500.0,0.00029315,4]
[328065027,1716828685727,-250.0,0.00029315,4]
[328065028,1716828685743,-638.7,0.00029315,4]
[328065029,1716828685760,-574.14,0.00029315,4]
[328065030,1716828685780,-500.0,0.00029315,4]
[328065031,1716828685795,-2360.67,0.00029315,4]
[328065032,1716828685812,-500.0,0.00029315,4]
[328065033,1716828685828,-1074.44,0.00029315,4]
[328065034,1716828685839,-921.35,0.00029315,4]
[328065035,1716828685849,-576.69,0.00029315,4]
[328065036,1716828685860,-1212.06,0.00029315,4]
[328065037,1716828685870,-12483.57,0.00029315,4]
[328065038,1716828685880,-528.21,0.00029315,4]
[328065039,1716828685891,-552.28111083,0.00029315,4]
[328065040,1716828685901,-510.28730537,0.00029315,4]
[328065041,1716828685911,-1012.48,0.00029315,4]
[328065042,1716828685921,-500.0,0.00029315,4]
[328065043,1716828685930,-773.35,0.00029315,4]
[328065044,1716828685940,-500.0,0.00029315,4]
[328065045,1716828685950,-910.69,0.00029315,4]
[328065046,1716828685960,-500.0,0.00029315,4]
[328065047,1716828685970,-500.0,0.00029315,4]
[328065048,1716828685979,-704.47,0.00029315,4]
[328065049,1716828685989,-500.0,0.00029315,4]
[328065050,1716828685999,-790.95,0.00029315,4]
[328065051,1716828686009,-500.0,0.00029315,4]
[328065052,1716828686019,-500.0,0.00029315,4]
[328065053,1716828686028,-500.0,0.00029315,4]
[328065054,1716828686038,-814.71,0.00029315,4]
[328065055,1716828686048,-2637.19,0.00029315,4]
[328065056,1716828686058,-500.0,0.00029315,4]
[328065057,1716828686069,-509.22332117,0.00029315,4]
[328065058,1716828686079,-736.82,0.00029315,4]
[328065059,1716828686088,-952.11,0.00029315,4]
[328065060,1716828686098,-500.0,0.00029315,4]
[328065061,1716828686108,-500.0,0.00029315,4]
[328065062,1716828686118,-529.54,0.00029315,4]
[328065063,1716828686128,-500.0,0.00029315,4]
[328065064,1716828686137,-554.42636702,0.00029315,4]
[328065065,1716828686454,-576.92,0.00029315,4]
[328065066,1716828686472,-594.73,0.00029315,4]
[328065067,1716828686485,-215.04736459,0.00029315,4]
[328065068,1716828686495,-500.0,0.00029315,4]
[328065069,1716828686505,-669.39,0.00029315,4]
[328065070,1716828686515,-1352.61,0.00029315,4]
[328065071,1716828686524,-667.65,0.00029315,4]
[328065072,1716828686534,-562.4,0.00029315,4]
[328065073,1716828686544,-3442.49,0.00029315,4]
[328065074,1716828686554,-500.0,0.00029315,4]
[328065075,1716828686564,-500.0,0.00029315,4]
[328065076,1716828686576,-300.0,0.00029315,4]
[328065077,1716828686586,-550.83,0.00029315,4]
[328065078,1716828686596,-776.28,0.00029315,4]
[328065079,1716828686606,-2136.16,0.00029315,4]
[328065080,1716828686616,-3257.38,0.00029315,4]
[328065081,1716828686625,-2740.36,0.00029315,4]
[328065082,1716828686635,-1654.94,0.00029315,4]
[328065083,1716828686644,-554.59,0.00029315,4]
[328065084,1716828686654,-1514.86,0.00029315,4]
[328065085,1716828686663,-500.0,0.00029315,4]
[328065086,1716828686673,-500.0,0.00029315,4]
[328065087,1716828686682,-500.0,0.00029315,4]
[328065088,1716828686692,-500.0,0.00029315,4]
[328065089,1716828686701,-500.0,0.00029315,4]
[328065090,1716828686711,-1050.35,0.00029315,4]
[328065091,1716828686720,-500.0,0.00029315,4]
[328065092,1716828686729,-892.42,0.00029315,4]
[328065093,1716828686739,-500.0,0.00029315,4]
[328065094,1716828686748,-426.46277667,0.00029315,4]
[328065095,1716828686758,-500.0,0.00029315,4]
[328065096,1716828686773,-512.64428282,0.00029315,4]
[328065097,1716828686790,-500.0,0.00029315,2]
[328065098,1716828686800,-651.97,0.00029315,4]
[328065099,1716828686810,-1363.75,0.00029315,4]
[328065100,1716828686820,-593.66,0.00029315,4]
[328065101,1716828686830,-1131.43,0.00029315,4]
[328065102,1716828686840,-539.52,0.00029315,4]
[328065103,1716828686849,-500.0,0.00029315,4]
[328065104,1716828686859,-261.19482695,0.00029315,4]
[328065105,1716828686869,-7625.13,0.00029315,4]
[328065106,1716828686881,-515.41929623,0.00029315,4]
[328065107,1716828686891,-500.0,0.00029315,4]
[328065108,1716828686900,-574.45,0.00029315,4]
[328065109,1716828686913,-1087.57,0.00029315,4]
[328065110,1716828686923,-632.54,0.00029315,4]
[328065111,1716828686932,-1312.75,0.00029315,4]
[328065112,1716828686942,-633.72,0.00029315,4]
[328065113,1716828686951,-6361.41,0.00029315,4]
[328065114,1716828686961,-500.0,0.00029315,4]
[328065115,1716828686971,-500.0,0.00029315,4]
[328065116,1716828686981,-500.0,0.00029315,4]
[328065117,1716828686990,-587.32,0.00029315,4]
[328065118,1716828686999,-452.30462857,0.00029315,4]
[328065119,1716828688350,154.9690062,9.999e-05,2]
[328065294,1716829837889,-190.14627615,0.000156,2]
[328065295,1716829837898,-274.85373023,0.00016787,2]
[328065296,1716829837906,-2077.6789547,0.00016788,2]
[328065297,1716829837914,-20941.30114241,0.00017387,2]
[328065298,1716829837926,-3013.81110359,0.00017387,2]
[328065299,1716829837936,-944.887754,0.00017387,2]
[328065300,1716829837944,-61.34912599,0.00017865,2]
[328065301,1716829837955,-247.79562701,0.00017865,2]
[328065302,1716829837963,-101.48937299,0.000179,2]
[328065303,1716829837974,-149.37872722,0.000179,2]
[328065304,1716829837982,-107.48468198,0.00018,2]